fUST/lending_fUST_20250526
["ID","MTS","AMOUNT","RATE_DAILY","PERIOD"]
[362341435,1748207439433,-1754.71,0.0002,2]
[362341437,1748207439443,-430.0,0.0002,2]
[362341439,1748207439453,-430.0,0.0002,2]
[362341441,1748207439462,-504.13,0.0002,2]
[362341443,1748207439471,-430.0,0.0002,2]
[362341445,1748207439480,-430.0,0.0002,2]
[362341447,1748207439491,-500.0,0.00020003,2]
[362341449,1748207439500,-5000.0,0.000201,2]
[362341451,1748207439510,-862.81067262,0.000201,2]
[362341453,1748207439519,-637.0,0.000201,2]
[362341455,1748207439528,-1396.51347961,0.00020141,2]
[362341457,1748207439538,-418.269291,0.00020187,2]
[362341459,1748207439548,-5000.0,0.000202,2]
[362341461,1748207439557,-5000.0,0.000202,7]
[362341463,1748207439567,-5000.0,0.000202,2]
[362341465,1748207439577,-5000.0,0.000202,7]
[362341467,1748207439586,-314.64711426,0.000202,7]
[362341469,1748207439595,-1000.0,0.0002022,2]
[362341471,1748207439604,-430.0,0.00020273,2]
[362341473,1748207439614,-304.75189208,0.00020273,2]
[362341475,1748207439624,-430.0,0.00020273,2]
[362341477,1748207439635,-430.0,0.00020273,2]
[362341479,1748207439645,-500.0,0.00020273,2]
[362341481,1748207439654,-1047.96,0.00020273,2]
[362341483,1748207439669,-430.0,0.00020273,2]
[362341485,1748207439678,-305.16558151,0.00020273,2]
[362341488,1748207439689,-267.62232923,0.00020273,2]
[362341490,1748207439699,-430.0,0.00020273,2]
[362341492,1748207439711,-2824.0,0.00020273,2]
[362341494,1748207439722,-430.0,0.00020273,2]
[362341496,1748207439733,-171.58,0.00020273,2]
[362341498,1748207439743,-430.0,0.00020273,2]
[362341500,1748207439753,-484.05,0.00020273,2]
[362341502,1748207439764,-871.24,0.00020273,2]
[362341504,1748207439773,-430.0,0.00020273,2]
[362341506,1748207439782,-2305.7,0.00020273,2]
[362341508,1748207439793,-1468.36,0.00020273,2]
[362341510,1748207439802,-430.0,0.00020273,2]
[362341512,1748207439811,-430.0,0.00020273,2]
[362341514,1748207439821,-430.0,0.00020273,2]
[362341516,1748207439830,-1576.05,0.00020273,2]
[362341518,1748207439840,-706.49,0.00020273,2]
[362341520,1748207439850,-430.0,0.00020273,2]
[362341522,1748207439859,-261.89,0.00020273,2]
[362341524,1748207439868,-431.39,0.00020273,2]
[362341526,1748207439880,-430.0,0.00020273,2]
[362341528,1748207439890,-430.0,0.00020273,2]
[362341530,1748207439900,-430.0,0.00020273,2]
[362341532,1748207439910,-430.0,0.00020273,2]
[362341534,1748207439920,-430.0,0.00020273,2]
[362341536,1748207439930,-430.0,0.00020273,2]
[362341538,1748207439940,-430.0,0.00020273,2]
[362341540,1748207439950,-469.99,0.00020273,2]
[362341542,1748207439961,-489.9,0.00020273,2]
[362341544,1748207439971,-825.29,0.00020273,2]
[362341546,1748207439981,-430.0,0.00020273,2]
[362341549,1748207439990,-430.0,0.00020273,2]
[362341552,1748207439999,-430.0,0.00020273,2]
[362341554,1748207440009,-430.0,0.00020273,2]
[362341556,1748207440018,-811.73,0.00020273,2]
[362341558,1748207440029,-430.0,0.00020273,2]
[362341560,1748207440039,-430.0,0.00020273,2]
[362341562,1748207440048,-430.0,0.00020273,2]
[362341564,1748207440057,-621.26,0.00020273,2]
[362341566,1748207440066,-637.76,0.00020273,2]
[362341568,1748207440076,-824.11,0.00020273,2]
[362341570,1748207440085,-430.0,0.00020273,2]
[362341572,1748207440094,-1521.81,0.00020273,2]
[362341574,1748207440104,-430.0,0.00020273,2]
[362341576,1748207440114,-430.0,0.00020273,2]
[362341579,1748207440123,-1257.88,0.00020273,2]
[362341582,1748207440134,-430.0,0.00020273,2]
[362341584,1748207440144,-688.18,0.00020273,2]
[362341587,1748207440154,-1017.29,0.00020273,2]
[362341590,1748207440165,-430.0,0.00020273,2]
[362341593,1748207440174,-430.0,0.00020273,2]
[362341595,1748207440184,-1754.71,0.00020273,2]
[362341598,1748207440193,-430.0,0.00020273,2]
[362341601,1748207440203,-430.0,0.00020273,2]
[362341603,1748207440212,-504.13,0.00020273,2]
[362341605,1748207440222,-430.0,0.00020273,2]
[362341607,1748207440231,-430.0,0.00020273,2]
[362341609,1748207440242,-155.0,0.00020274,2]
[362341611,1748207440252,-1396.51347961,0.00020348,3]
[362341612,1748207440261,-201.451,0.00020521,2]
[362341614,1748207440270,-215.0738,0.00020535,2]
[362341615,1748207440280,-22824.45796903,0.00020538,3]
[362341628,1748207440417,-1026.811301,0.00020538,3]
[362341633,1748207440438,-574.17072997,0.00020538,3]
[362341636,1748207440447,-3869.88426993,0.00020538,3]
[362341640,1748207440459,-8342.83573007,0.00020538,3]
[362341643,1748207440469,-6106.36,0.00020538,3]
[362341646,1748207440478,-3053.18,0.00020538,3]
[362341649,1748207440487,-1526.58,0.00020538,3]
[362341652,1748207440497,-430.0,0.00020547,2]
[362341655,1748207440506,-430.0,0.00020547,2]
[362341657,1748207440515,-310.32908957,0.00020547,2]
[362341660,1748207440525,-589.2765073,0.00020547,2]
[362341749,1748207441131,-381.65,0.00019168,3]
[362341751,1748207441140,-193.85391567,0.00019178,2]
[362342287,1748207446485,-575.50391567,0.00018986,2]
[362342289,1748207446495,-500.0,0.00019177,2]
[362342291,1748207446505,-500.0,0.00019177,2]
[362342292,1748207446515,-391.62002294,0.00019177,2]
[362342293,1748207446524,-500.0,0.00019177,2]
[362342294,1748207446534,-500.0,0.00019177,2]
[362342295,1748207446544,-500.0,0.00019177,2]
[362342296,1748207446553,-500.0,0.00019177,2]
[362342297,1748207446563,-452.8333947,0.00019177,2]
[362342298,1748207446573,-500.0,0.00019177,2]
[362342299,1748207446582,-500.0,0.00019177,2]
[362342300,1748207446592,-500.0,0.00019177,2]
[362342301,1748207446602,-123.02231043,0.00019178,2]
[362342302,1748207446611,-430.0,0.00019178,2]
[362342303,1748207446621,-430.0,0.00019178,2]
[362342304,1748207446630,-430.0,0.00019178,2]
[362342305,1748207446640,-430.0,0.00019178,2]
[362342306,1748207446649,-430.0,0.00019178,2]
[362342307,1748207446660,-430.0,0.00019178,2]
[362342309,1748207446671,-430.0,0.00019178,2]
[362342311,1748207446680,-430.0,0.00019178,2]
[362342313,1748207446690,-1943.43,0.00019178,2]
[362342315,1748207446701,-2253.59,0.00019178,2]
[362342317,1748207446711,-430.0,0.00019178,2]
[362342319,1748207446720,-433.96152516,0.00019178,2]
[362342321,1748207446730,-500.0,0.00019178,2]
[362342323,1748207446739,-500.0,0.00019178,2]
[362342325,1748207446749,-172.37988251,0.00019178,2]
[362342327,1748207446758,-500.0,0.00019178,2]
[362342329,1748207446769,-305.01551178,0.00019178,2]
[362342343,1748207446918,-502.72180451,0.00019178,2]
[362342344,1748207446930,-430.0,0.00019178,2]
[362342345,1748207446940,-1943.43,0.00019452,2]
[362342346,1748207446950,-2253.59,0.00019452,2]
[362342347,1748207446959,-404.0,0.00019568,2]
[362342348,1748207446969,-1943.43,0.00019726,2]
[362342349,1748207446979,-2253.59,0.00019726,2]
[362342350,1748207446988,-2200.0,0.00019907,2]
[362342351,1748207446997,-1943.43,0.0002,2]
[362342352,1748207447007,-2253.59,0.0002,2]
[362342353,1748207447016,-1943.43,0.00020273,2]
[362342354,1748207447025,-2253.59,0.00020273,2]
[362342355,1748207447035,-763.3,0.00020538,3]
[362342356,1748207447044,-458.6834927,0.00020547,2]
[362342357,1748207447054,-430.0,0.00020547,2]
[362342358,1748207447063,-374.11694667,0.00020547,2]
[362342359,1748207447073,-430.0,0.00020547,2]
[362342360,1748207447083,-871.24,0.00020547,2]
[362342361,1748207447092,-1468.36,0.00020547,2]
[362342362,1748207447102,-430.0,0.00020547,2]
[362342363,1748207447111,-430.0,0.00020547,2]
[362342364,1748207447121,-430.0,0.00020547,2]
[362342365,1748207447130,-1576.05,0.00020547,2]
[362342366,1748207447139,-706.49,0.00020547,2]
[362342367,1748207447149,-430.0,0.00020547,2]
[362342368,1748207447158,-431.39,0.00020547,2]
[362342369,1748207447167,-430.0,0.00020547,2]
[362342370,1748207447176,-430.0,0.00020547,2]
[362342371,1748207447186,-430.0,0.00020547,2]
[362342372,1748207447195,-430.0,0.00020547,2]
[362342373,1748207447204,-430.0,0.00020547,2]
[362342374,1748207447213,-430.0,0.00020547,2]
[362342375,1748207447223,-430.0,0.00020547,2]
[362342376,1748207447233,-469.99,0.00020547,2]
[362342377,1748207447243,-489.9,0.00020547,2]
[362342378,1748207447252,-825.29,0.00020547,2]
[362342379,1748207447262,-501.60105038,0.00020547,2]
[362342380,1748207447271,-430.0,0.00020547,2]
[362342381,1748207447280,-430.0,0.00020547,2]
[362342382,1748207447290,-430.0,0.00020547,2]
[362342383,1748207447299,-811.73,0.00020547,2]
[362342384,1748207447309,-430.0,0.00020547,2]
[362342385,1748207447319,-464.33274605,0.00020547,2]
[362342386,1748207447328,-430.0,0.00020547,2]
[362342387,1748207447339,-621.26,0.00020547,2]
[362342388,1748207447348,-637.76,0.00020547,2]
[362342389,1748207447358,-824.11,0.00020547,2]
[362342390,1748207447367,-430.0,0.00020547,2]
[362342391,1748207447377,-1521.81,0.00020547,2]
[362342392,1748207447387,-430.0,0.00020547,2]
[362342393,1748207447401,-430.0,0.00020547,2]
[362342394,1748207447411,-1257.88,0.00020547,2]
[362342395,1748207447421,-688.18,0.00020547,2]
[362342396,1748207447431,-1017.29,0.00020547,2]
[362342397,1748207447442,-430.0,0.00020547,2]
[362342398,1748207447451,-181.58,0.00020547,2]
[362342399,1748207447461,-1754.71,0.00020547,2]
[362342400,1748207447471,-332.81,0.00020547,2]
[362342401,1748207447481,-430.0,0.00020547,2]
[362342402,1748207447491,-504.13,0.00020547,2]
[362342403,1748207447501,-430.0,0.00020547,2]
[362342404,1748207447510,-430.0,0.00020547,2]
[362342405,1748207447520,-1943.43,0.00020547,2]
[362342406,1748207447530,-2253.59,0.00020547,2]
[362342407,1748207447540,-1000.0,0.00020551,2]
[362342408,1748207447550,-1396.51347961,0.00020555,3]
[362342410,1748207447559,-1096.0,0.00020571,15]
[362342412,1748207447569,-152.71151188,0.00020575,2]
[362342414,1748207447579,-376.19,0.00020641,2]
[362342416,1748207447588,-1087.18545695,0.00020741,2]
[362342418,1748207447598,-1396.51347961,0.00020762,3]
[362342420,1748207447607,-314.64711426,0.00020802,3]
[362342422,1748207447618,-430.0,0.00020821,2]
[362342424,1748207447628,-430.0,0.00020821,2]
[362342426,1748207447638,-1047.96,0.00020821,2]
[362342428,1748207447649,-197.54133489,0.00020821,2]
[362342430,1748207447660,-430.0,0.00020821,2]
[362342432,1748207447672,-871.24,0.00020821,2]
[362342434,1748207447682,-1468.36,0.00020821,2]
[362342436,1748207447692,-430.0,0.00020821,2]
[362342438,1748207447703,-430.0,0.00020821,2]
[362342440,1748207447713,-1576.05,0.00020821,2]
[362342442,1748207447723,-430.0,0.00020821,2]
[362342444,1748207447733,-706.49,0.00020821,2]
[362342446,1748207447743,-430.0,0.00020821,2]
[362342448,1748207447753,-431.39,0.00020821,2]
[362342450,1748207447762,-430.0,0.00020821,2]
[362342452,1748207447771,-430.0,0.00020821,2]
[362342454,1748207447781,-430.0,0.00020821,2]
[362342456,1748207447791,-430.0,0.00020821,2]
[362342458,1748207447800,-430.0,0.00020821,2]
[362342460,1748207447810,-430.0,0.00020821,2]
[362342463,1748207447820,-430.0,0.00020821,2]
[362342465,1748207447832,-469.99,0.00020821,2]
[362342467,1748207447842,-489.9,0.00020821,2]
[362342469,1748207447851,-825.29,0.00020821,2]
[362342471,1748207447862,-430.0,0.00020821,2]
[362342473,1748207447873,-430.0,0.00020821,2]
[362342475,1748207447883,-430.0,0.00020821,2]
[362342477,1748207447893,-811.73,0.00020821,2]
[362342479,1748207447903,-430.0,0.00020821,2]
[362342481,1748207447912,-430.0,0.00020821,2]
[362342483,1748207447922,-621.26,0.00020821,2]
[362342485,1748207447932,-637.76,0.00020821,2]
[362342487,1748207447941,-824.11,0.00020821,2]
[362342489,1748207447950,-430.0,0.00020821,2]
[362342491,1748207447960,-1521.81,0.00020821,2]
[362342493,1748207447970,-430.0,0.00020821,2]
[362342495,1748207447979,-430.0,0.00020821,2]
[362342497,1748207447989,-1257.88,0.00020821,2]
[362342499,1748207447999,-688.18,0.00020821,2]
[362342501,1748207448008,-1017.29,0.00020821,2]
[362342503,1748207448017,-430.0,0.00020821,2]
[362342505,1748207448027,-1754.71,0.00020821,2]
[362342508,1748207448036,-430.0,0.00020821,2]
[362342510,1748207448045,-504.13,0.00020821,2]
[362342512,1748207448055,-430.0,0.00020821,2]
[362342514,1748207448064,-430.0,0.00020821,2]
[362342516,1748207448073,-1943.43,0.00020821,2]
[362342518,1748207448082,-2253.59,0.00020821,2]
[362342520,1748207448092,-155.0,0.00020822,2]
[362342522,1748207448102,-152.71151189,0.00020849,2]
[362342524,1748207448112,-152.71151188,0.00020849,2]
[362342526,1748207448122,-158.10231729,0.00020849,2]
[362342528,1748207448131,-1396.51347961,0.00020969,4]
[362342530,1748207448140,-2000.0,0.00021,2]
[362342532,1748207448150,-2000.0,0.00021,2]
[362342534,1748207448159,-3000.0,0.00021,2]
[362342536,1748207448168,-3000.0,0.0002101,2]
[362342538,1748207448178,-3000.0,0.0002102,2]
[362342540,1748207448187,-3000.0,0.0002103,2]
[362342542,1748207448197,-3000.0,0.0002104,2]
[362342544,1748207448207,-3000.0,0.0002105,2]
[362342546,1748207448216,-212.55626673,0.00021056,3]
[362342548,1748207448226,-3000.0,0.0002106,2]
[362342550,1748207448236,-3000.0,0.0002107,2]
[362342552,1748207448245,-3000.0,0.0002108,2]
[362342554,1748207448254,-190.82,0.00021085,3]
[362342556,1748207448263,-3000.0,0.0002109,2]
[362342559,1748207448273,-430.0,0.00021095,2]
[362342561,1748207448282,-430.0,0.00021095,2]
[362342563,1748207448291,-1047.96,0.00021095,2]
[362342565,1748207448301,-430.0,0.00021095,2]
[362342567,1748207448310,-871.24,0.00021095,2]
[362342569,1748207448320,-1325.20654285,0.00021095,2]
[362342601,1748207448615,-143.15345715,0.00021095,2]
[362342603,1748207448625,-430.0,0.00021095,2]
[362342605,1748207448635,-430.0,0.00021095,2]
[362342608,1748207448644,-1443.03151076,0.00021095,2]
[362346973,1748207545911,-913.1002364,0.00017991,2]
[362346974,1748207545933,-89.8997636,0.00018889,2]
[362346975,1748207616683,-500.0,0.00018081,2]
[362346976,1748207616705,-362.8256052,0.00018338,2]
[362346977,1748207616730,-166.07,0.00018808,2]
[362346978,1748207616752,-414.1043948,0.00019078,2]
[362347004,1748207945335,-197.9765349,0.00018192,2]
[362347005,1748207945358,-808.7387602,0.00018192,2]
[362347006,1748207945381,-2433.2847049,0.00018335,2]
[362347007,1748207967706,-191.36463773,0.00013699,2]
[362347009,1748207969825,-209.21593227,0.00013699,2]
[362347011,1748207973893,7487.50020457,0.0002465,120]
[362347027,1748208533934,-3583.0,0.00017556,2]
[362347059,1748208632742,-87.38388979,0.00017556,2]
[362347060,1748208632754,-1024.0541179,0.00017912,2]
[362347061,1748208632765,-300.0,0.00018173,2]
[362347062,1748208632775,-12074.9132531,0.00018174,2]
[362347063,1748208632785,-2846.5917876,0.00018183,2]
[362347064,1748208632795,-391.0105617,0.00018335,2]
[362347065,1748208632807,-627.72786127,0.00019077,2]
[362347066,1748208632817,-341.92630732,0.00019078,2]
[362347067,1748208632828,-207.4,0.00019166,2]
[362347068,1748208632838,-159.02,0.00019168,3]
[362347069,1748208632849,-477.09,0.00019168,3]
[362347070,1748208632859,-500.0,0.00019173,2]
[362347071,1748208632869,-15056.10057961,0.00019173,2]
[362347072,1748208632881,-500.0,0.00019177,2]
[362347073,1748208632892,-500.0,0.00019177,2]
[362347074,1748208632902,-500.0,0.00019177,2]
[362347075,1748208632913,-500.0,0.00019177,2]
[362347076,1748208632923,-644.97410503,0.00019177,2]
[362347077,1748208632933,-500.0,0.00019177,2]
[362347078,1748208632943,-464.32688864,0.00019178,2]
[362347079,1748208632952,-430.0,0.00019178,2]
[362347080,1748208632962,-430.0,0.00019178,2]
[362347081,1748208632973,-400.0,0.00019178,2]
[362347082,1748208632983,-450.0,0.00019178,2]
[362347083,1748208632994,-400.0,0.00019178,2]
[362347084,1748208633005,-400.0,0.00019178,2]
[362347085,1748208633014,-430.0,0.00019178,2]
[362347086,1748208633023,-450.0,0.00019178,2]
[362347087,1748208633034,-407.05376416,0.00019178,2]
[362347088,1748208633043,-450.0,0.00019178,2]
[362347089,1748208633053,-207.6195247,0.00019178,2]
[362347090,1748208633063,-450.0,0.00019178,2]
[362347091,1748208633072,-430.0,0.00019178,2]
[362347092,1748208633082,-430.0,0.00019178,2]
[362347093,1748208633091,-430.0,0.00019178,2]
[362347094,1748208633101,-450.0,0.00019178,2]
[362347095,1748208633110,-362.78658945,0.00019178,2]
[362347096,1748208633120,-451.20599261,0.00019178,2]
[362347097,1748208633130,-450.0,0.00019178,2]
[362347098,1748208633139,-450.0,0.00019178,2]
[362347099,1748208633148,-431.06022696,0.00019178,2]
[362347100,1748208633158,-450.0,0.00019178,2]
[362347101,1748208633167,-430.0,0.00019178,2]
[362347102,1748208633177,-451.05281378,0.00019178,2]
[362347103,1748208633187,-430.0,0.00019178,2]
[362347104,1748208633408,-450.0,0.00019178,2]
[362347105,1748208633418,-414.78872611,0.00019178,2]
[362347106,1748208633428,-350.80488444,0.00019178,2]
[362347107,1748208633438,-450.0,0.00019178,2]
[362347108,1748208633447,-435.27183413,0.00019178,2]
[362347109,1748208633458,-451.08331362,0.00019178,2]
[362347110,1748208633467,-450.0,0.00019178,2]
[362347111,1748208633477,-539.12081235,0.00019178,2]
[362347112,1748208633487,-450.0,0.00019178,2]
[362347113,1748208633498,-450.0,0.00019178,2]
[362347114,1748208633507,-450.0,0.00019178,2]
[362347115,1748208633517,-450.0,0.00019178,2]
[362347116,1748208633527,-450.0,0.00019178,2]
[362347117,1748208633537,-420.50975044,0.00019178,2]
[362347118,1748208633547,-400.0,0.00019178,2]
[362347119,1748208633556,-400.0,0.00019178,2]
[362347120,1748208633566,-400.0,0.00019178,2]
[362347121,1748208633575,-400.0,0.00019178,2]
[362347122,1748208633585,-430.0,0.00019178,2]
[362347123,1748208633595,-430.0,0.00019178,2]
[362347124,1748208633604,-430.0,0.00019178,2]
[362347125,1748208633614,-447.84,0.00019178,2]
[362347126,1748208633624,-450.0,0.00019178,2]
[362347127,1748208633634,-430.0,0.00019178,2]
[362347128,1748208633644,-430.0,0.00019178,2]
[362347129,1748208633654,-450.0,0.00019178,2]
[362347130,1748208633664,-554.74,0.00019178,2]
[362347131,1748208633674,-430.0,0.00019178,2]
[362347132,1748208633683,-430.0,0.00019178,2]
[362347133,1748208633693,-430.0,0.00019178,2]
[362347134,1748208633703,-428.81033719,0.00019178,2]
[362347135,1748208633713,-430.0,0.00019178,2]
[362347136,1748208633723,-430.0,0.00019178,2]
[362347137,1748208633732,-430.0,0.00019178,2]
[362347138,1748208633743,-430.0,0.00019178,2]
[362347139,1748208633752,-430.0,0.00019178,2]
[362347140,1748208633762,-430.0,0.00019178,2]
[362347141,1748208633771,-370.0,0.00019178,2]
[362347142,1748208633781,-430.0,0.00019178,2]
[362347143,1748208633791,-371.77,0.00019178,2]
[362347144,1748208633800,-430.0,0.00019178,2]
[362347145,1748208633810,-430.0,0.00019178,2]
[362347146,1748208633820,-430.0,0.00019178,2]
[362347147,1748208633830,-430.0,0.00019178,2]
[362347148,1748208633839,-430.0,0.00019178,2]
[362347149,1748208633848,-430.0,0.00019178,2]
[362347150,1748208633858,-501.66825173,0.00019178,2]
[362347151,1748208633867,-401.70462869,0.00019178,2]
[362347152,1748208633877,-430.0,0.00019178,2]
[362347153,1748208633887,-430.0,0.00019178,2]
[362347154,1748208633896,-151.47095574,0.00019178,2]
[362347155,1748208633906,-450.0,0.00019178,2]
[362347156,1748208633915,-450.0,0.00019178,2]
[362347157,1748208633925,-420.0,0.00019178,2]
[362347158,1748208633934,-401.49548055,0.00019178,2]
[362347159,1748208633943,-401.31841447,0.00019178,2]
[362347160,1748208633953,-243.7078941,0.00019178,2]
[362347161,1748208633963,-430.0,0.00019178,2]
[362347162,1748208633973,-430.51694996,0.00019178,2]
[362347163,1748208633982,-430.0,0.00019178,2]
[362347164,1748208633992,-430.0,0.00019178,2]
[362347165,1748208634002,-350.0,0.00019178,2]
[362347166,1748208634011,-430.0,0.00019178,2]
[362347167,1748208634021,-430.0,0.00019178,2]
[362347168,1748208634030,-430.0,0.00019178,2]
[362347169,1748208634040,-225.63193988,0.00019178,2]
[362347170,1748208634049,-450.0,0.00019178,2]
[362347171,1748208634059,-430.63332418,0.00019178,2]
[362347172,1748208634068,-400.0,0.00019178,2]
[362347173,1748208634077,-431.70411064,0.00019178,2]
[362347174,1748208634086,-430.0,0.00019178,2]
[362347175,1748208634096,-403.21878443,0.00019178,2]
[362347176,1748208634105,-431.01518832,0.00019178,2]
[362347177,1748208634114,-430.0,0.00019178,2]
[362347178,1748208634124,-431.59099238,0.00019178,2]
[362347179,1748208634133,-430.0,0.00019178,2]
[362347180,1748208634143,-433.04701437,0.00019178,2]
[362347181,1748208634152,-23.12221441,0.00019178,2]
[362347542,1748208646518,-500.0,0.00019177,2]
[362347544,1748208646528,-627.01400798,0.00019177,2]
[362347546,1748208646538,-326.87778559,0.00019178,2]
[362347548,1748208646548,-430.0,0.00019178,2]
[362347551,1748208646558,-430.0,0.00019178,2]
[362347553,1748208646568,-430.0,0.00019178,2]
[362347555,1748208646577,-430.0,0.00019178,2]
[362347557,1748208646586,-431.38325702,0.00019178,2]
[362347559,1748208646596,-300.0,0.00019178,2]
[362347561,1748208646606,-430.0,0.00019178,2]
[362347563,1748208646616,-210.64309618,0.00019178,2]
[362347565,1748208646627,-430.38343632,0.00019178,2]
[362347567,1748208646637,-430.0,0.00019178,2]
[362347569,1748208646646,-430.0,0.00019178,2]
[362347571,1748208646656,-430.0,0.00019178,2]
[362347573,1748208646665,-430.91758074,0.00019178,2]
[362347575,1748208646675,-430.0,0.00019178,2]
[362347577,1748208646684,-350.0,0.00019178,2]
[362347579,1748208646694,-430.0,0.00019178,2]
[362347581,1748208646703,-500.0,0.00019178,2]
[362347583,1748208646713,-500.0,0.00019178,2]
[362347585,1748208646722,-500.0,0.00019178,2]
[362347587,1748208646732,-500.0,0.00019178,2]
[362347589,1748208646742,-500.0,0.00019178,2]
[362347591,1748208646752,-500.0,0.00019178,2]
[362347593,1748208646761,-500.0,0.00019178,2]
[362347595,1748208646770,-500.0,0.00019178,2]
[362347597,1748208646780,-430.0,0.00019178,2]
[362347599,1748208646789,-430.0,0.00019178,2]
[362347601,1748208646799,-430.0,0.00019178,2]
[362347603,1748208646808,-400.0,0.00019178,2]
[362347605,1748208646817,-430.0,0.00019178,2]
[362347607,1748208646827,-430.0,0.00019178,2]
[362347609,1748208646837,-430.0,0.00019178,2]
[362347611,1748208646847,-430.0,0.00019178,2]
[362347613,1748208646858,-430.0,0.00019178,2]
[362347615,1748208646868,-509.93442164,0.00019178,2]
[362347617,1748208646877,-468.67857071,0.00019178,2]
[362347619,1748208646887,-430.0,0.00019178,2]
[362347621,1748208646897,-430.0,0.00019178,2]
[362347623,1748208646907,-430.0,0.00019178,2]
[362347625,1748208646917,-430.0,0.00019178,2]
[362347627,1748208646927,-430.0,0.00019178,2]
[362347630,1748208646937,-430.0,0.00019178,2]
[362347632,1748208646946,-321.85974206,0.00019178,2]
[362347633,1748208646956,-208.0545317,0.00019178,2]
[362347635,1748208646966,-431.40797173,0.00019178,2]
[362347637,1748208646975,-432.98730845,0.00019178,2]
[362347639,1748208646984,-430.0,0.00019178,2]
[362347641,1748208646994,-430.0,0.00019178,2]
[362347643,1748208647003,-91.84860978,0.00019178,2]
[362347646,1748208647020,-338.15139022,0.00019178,2]
[362347648,1748208647029,-433.60472095,0.00019178,2]
[362347650,1748208647038,-406.14284983,0.00019178,2]
[362347652,1748208647047,-150.96260043,0.00019178,2]
[362347654,1748208647056,-335.14843857,0.00019178,2]
[362350580,1748208916875,-226.78,0.00014175,2]
[362350581,1748208916900,-340.17,0.00015356,2]
[362350582,1748208916926,-293.05,0.00016538,2]
[362350583,1748208984352,-195.51,0.00014485,2]
[362350584,1748208984376,-234.49,0.00015692,2]
[362350586,1748208991616,-182.33046767,0.00013699,2]
[362350587,1748208992742,-214.03577433,0.00013699,2]
[362350588,1748209049399,-179.87,0.00014491,2]
[362350589,1748209049422,-665.0730864,0.00015535,2]
[362350590,1748209049445,-222.0569136,0.00015698,2]
[362350598,1748209118371,-209.67,0.00014488,2]
[362350599,1748209118395,-220.33,0.00015695,2]
[362350600,1748209186449,-194.04,0.00014481,2]
[362350601,1748209186471,-235.96,0.00015688,2]
[362350602,1748209253963,-178.4,0.00014494,2]
[362350603,1748209253986,-251.6,0.00015702,2]
[362350604,1748209319934,-162.76,0.00014477,2]
[362350605,1748209319958,-137.24,0.00015684,2]
[362350606,1748209387117,-151.85,0.00014499,2]
[362350607,1748209387140,-85.15,0.00015707,2]
[362350610,1748209455169,-172.0,0.00015711,2]
[362350613,1748209523195,-172.0,0.00015708,2]
[362350615,1748209655076,-163.0,0.00015712,2]
[362350616,1748209720928,-187.2,0.00015712,2]
[362350617,1748209720952,-242.8,0.00016921,2]
[362350671,1748209832788,-163.75,0.00015706,2]
[362350673,1748209832800,-218.33,0.00016914,2]
[362350675,1748209832811,-191.0,0.00017699,3]
[362350677,1748209832821,-300.0,0.00017976,2]